fUSD/lending_fUSD_20260610
["ID","MTS","AMOUNT","RATE_DAILY","PERIOD"]
[424645522,1781028632000,-4874.38474195,7.051e-05,2]
[424645525,1781028632000,-391.88,7.051e-05,2]
[424645526,1781028632000,-393.51233074,7.051e-05,2]
[424645528,1781028632000,-1697.3375266,7.051e-05,2]
[424645527,1781028632000,-672.09,7.051e-05,2]
[424645529,1781028632000,-1117.69894956,7.051e-05,2]
[424645524,1781028632000,-91392.17025392,7.051e-05,2]
[424645549,1781028638000,-604.59,7.151e-05,2]
[424645548,1781028638000,-328.8,7.151e-05,2]
[424645545,1781028638000,-158.91248674,7.149e-05,2]
[424645544,1781028638000,-666.16112346,7.149e-05,2]
[424645543,1781028638000,-5880.272,7.149e-05,2]
[424645547,1781028638000,-38385.49,7.151e-05,2]
[424645542,1781028638000,-585.407,7.149e-05,2]
[424645546,1781028638000,-1000.0,7.15e-05,2]
[424645553,1781028638000,-1037.27217503,7.369e-05,2]
[424645552,1781028638000,-1037.27217503,7.369e-05,2]
[424645541,1781028638000,-150.0,7.149e-05,2]
[424645540,1781028638000,-2300313.14454478,7.051e-05,2]
[424645539,1781028638000,-10553.45963944,7.051e-05,2]
[424645538,1781028638000,-1620.0,7.051e-05,2]
[424645551,1781028638000,-1037.27217503,7.369e-05,2]
[424645550,1781028638000,-1037.27217503,7.369e-05,2]
[424645537,1781028638000,-304.0,7.051e-05,2]
[424645554,1781028638000,-1037.27217503,7.369e-05,2]
[424645555,1781028638000,-1037.27217503,7.369e-05,2]
[424645580,1781028638000,-1037.27217503,7.369e-05,2]
[424645576,1781028638000,-1037.27217503,7.369e-05,2]
[424645571,1781028638000,-1037.27217503,7.369e-05,2]
[424645574,1781028638000,-1037.27217503,7.369e-05,2]
[424645563,1781028638000,-1037.27217503,7.369e-05,2]
[424645562,1781028638000,-1037.27217503,7.369e-05,2]
[424645560,1781028638000,-1037.27217503,7.369e-05,2]
[424645578,1781028638000,-1037.27217503,7.369e-05,2]
[424645561,1781028638000,-1037.27217503,7.369e-05,2]
[424645559,1781028638000,-1037.27217503,7.369e-05,2]
[424645558,1781028638000,-1037.27217503,7.369e-05,2]
[424645567,1781028638000,-1037.27217503,7.369e-05,2]
[424645569,1781028638000,-1037.27217503,7.369e-05,2]
[424645565,1781028638000,-1037.27217503,7.369e-05,2]
[424645556,1781028638000,-1037.27217503,7.369e-05,2]
[424645557,1781028638000,-1037.27217503,7.369e-05,2]
[424645628,1781028639000,-1029.2931583,7.369e-05,2]
[424645632,1781028639000,-1029.2931583,7.369e-05,2]
[424645629,1781028639000,-1029.2931583,7.369e-05,2]
[424645635,1781028639000,-1029.2931583,7.369e-05,2]
[424645630,1781028639000,-1029.2931583,7.369e-05,2]
[424645627,1781028639000,-1029.2931583,7.369e-05,2]
[424645636,1781028639000,-1029.2931583,7.369e-05,2]
[424645634,1781028639000,-1029.2931583,7.369e-05,2]
[424645631,1781028639000,-1029.2931583,7.369e-05,2]
[424645625,1781028639000,-1029.2931583,7.369e-05,2]
[424645633,1781028639000,-1029.2931583,7.369e-05,2]
[424645626,1781028639000,-1029.2931583,7.369e-05,2]
[424645638,1781028639000,-1029.2931583,7.369e-05,2]
[424645644,1781028639000,-1029.2931583,7.369e-05,2]
[424645640,1781028639000,-1029.2931583,7.369e-05,2]
[424645649,1781028639000,-183.08077087,7.369e-05,2]
[424645647,1781028639000,-1029.2931583,7.369e-05,2]
[424645650,1781028639000,-500.0,7.369e-05,2]
[424645642,1781028639000,-1029.2931583,7.369e-05,2]
[424645639,1781028639000,-1029.2931583,7.369e-05,2]
[424645641,1781028639000,-1029.2931583,7.369e-05,2]
[424645621,1781028639000,-1029.2931583,7.369e-05,2]
[424645645,1781028639000,-1029.2931583,7.369e-05,2]
[424645643,1781028639000,-1029.2931583,7.369e-05,2]
[424645646,1781028639000,-1029.2931583,7.369e-05,2]
[424645652,1781028639000,-1029.29315829,7.369e-05,2]
[424645648,1781028639000,-1029.2931583,7.369e-05,2]
[424645620,1781028639000,-1029.2931583,7.369e-05,2]
[424645614,1781028639000,-1037.27217503,7.369e-05,2]
[424645619,1781028639000,-1037.27217503,7.369e-05,2]
[424645582,1781028639000,-1037.27217503,7.369e-05,2]
[424645584,1781028639000,-1037.27217503,7.369e-05,2]
[424645586,1781028639000,-1037.27217503,7.369e-05,2]
[424645588,1781028639000,-1037.27217503,7.369e-05,2]
[424645590,1781028639000,-1037.27217503,7.369e-05,2]
[424645592,1781028639000,-1037.27217503,7.369e-05,2]
[424645594,1781028639000,-1037.27217503,7.369e-05,2]
[424645596,1781028639000,-1037.27217503,7.369e-05,2]
[424645598,1781028639000,-1037.27217503,7.369e-05,2]
[424645601,1781028639000,-1037.27217503,7.369e-05,2]
[424645602,1781028639000,-1037.27217503,7.369e-05,2]
[424645606,1781028639000,-1037.27217503,7.369e-05,2]
[424645610,1781028639000,-1037.27217503,7.369e-05,2]
[424645604,1781028639000,-1037.27217503,7.369e-05,2]
[424645611,1781028639000,-1037.27217503,7.369e-05,2]
[424645609,1781028639000,-1037.27217503,7.369e-05,2]
[424645607,1781028639000,-1037.27217503,7.369e-05,2]
[424645608,1781028639000,-1037.27217503,7.369e-05,2]
[424645612,1781028639000,-1037.27217503,7.369e-05,2]
[424645624,1781028639000,-1029.2931583,7.369e-05,2]
[424645651,1781028639000,-1029.29315829,7.369e-05,2]
[424645613,1781028639000,-1037.27217503,7.369e-05,2]
[424645616,1781028639000,-1037.27217503,7.369e-05,2]
[424645615,1781028639000,-1037.27217503,7.369e-05,2]
[424645617,1781028639000,-1037.27217503,7.369e-05,2]
[424645618,1781028639000,-1037.27217503,7.369e-05,2]
[424645623,1781028639000,-1029.2931583,7.369e-05,2]
[424645622,1781028639000,-1029.2931583,7.369e-05,2]
[424645655,1781028639000,-1029.29315829,7.369e-05,2]
[424645637,1781028639000,-1029.2931583,7.369e-05,2]
[424645661,1781028639000,-1012.89519472,7.369e-05,2]
[424645695,1781028639000,-5883.1505258,0.000109,2]
[424645698,1781028639000,-500.0,0.00010958,2]
[424645687,1781028639000,-341.0,9.989e-05,2]
[424645699,1781028639000,-500.0,0.00010958,2]
[424645697,1781028639000,-2000.0,0.00010917,2]
[424645694,1781028639000,-341.0,9.989e-05,2]
[424645696,1781028639000,-5883.15052574,0.000109,2]
[424645689,1781028639000,-341.0,9.989e-05,2]
[424645688,1781028639000,-341.0,9.989e-05,2]
[424645690,1781028639000,-341.0,9.989e-05,2]
[424645693,1781028639000,-341.0,9.989e-05,2]
[424645691,1781028639000,-341.0,9.989e-05,2]
[424645701,1781028639000,-500.0,0.00010958,2]
[424645682,1781028639000,-250.0,9.315e-05,2]
[424645711,1781028639000,-166.66,0.00010959,2]
[424645702,1781028639000,-500.0,0.00010958,2]
[424645700,1781028639000,-500.0,0.00010958,2]
[424645706,1781028639000,-500.0,0.00010958,2]
[424645705,1781028639000,-500.0,0.00010958,2]
[424645708,1781028639000,-500.0,0.00010958,2]
[424645707,1781028639000,-500.0,0.00010958,2]
[424645703,1781028639000,-500.0,0.00010958,2]
[424645704,1781028639000,-500.0,0.00010958,2]
[424645709,1781028639000,-150.0,0.00010959,2]
[424645710,1781028639000,-150.0,0.00010959,2]
[424645713,1781028639000,-1205.05,0.00011036,2]
[424645657,1781028639000,-1029.29315829,7.369e-05,2]
[424645714,1781028639000,-166.66,0.00011068,2]
[424645712,1781028639000,-197.71,0.00010989,2]
[424645683,1781028639000,-405.0,9.383e-05,2]
[424645692,1781028639000,-341.0,9.989e-05,2]
[424645680,1781028639000,-2575.67,8.615e-05,2]
[424645654,1781028639000,-1029.29315829,7.369e-05,2]
[424645685,1781028639000,-1205.05,9.81e-05,2]
[424645658,1781028639000,-1029.29315829,7.369e-05,2]
[424645653,1781028639000,-1029.29315829,7.369e-05,2]
[424645660,1781028639000,-1012.89519473,7.369e-05,2]
[424645662,1781028639000,-193.0,7.37e-05,2]
[424645659,1781028639000,-1029.29315825,7.369e-05,2]
[424645664,1781028639000,-160.0,7.438e-05,2]
[424645674,1781028639000,-172.64,8.219e-05,2]
[424645673,1781028639000,-500.0,8.219e-05,2]
[424645663,1781028639000,-250.0,7.37e-05,2]
[424645672,1781028639000,-160.0,8.095e-05,2]
[424645665,1781028639000,-255.0,7.755e-05,2]
[424645669,1781028639000,-150.99,8.058e-05,2]
[424645656,1781028639000,-1029.29315829,7.369e-05,2]
[424645666,1781028639000,-314.4537508,7.755e-05,2]
[424645678,1781028639000,-433.0,8.53e-05,2]
[424645679,1781028639000,-200.0,8.594e-05,2]
[424645671,1781028639000,-4050.38,8.058e-05,2]
[424645684,1781028639000,-2000.0,9.704e-05,2]
[424645681,1781028639000,-299.99,8.864e-05,2]
[424645677,1781028639000,-104617.6630047,8.528e-05,2]
[424645686,1781028639000,-341.0,9.989e-05,2]
[424645675,1781028639000,-150.0,8.493e-05,2]
[424645676,1781028639000,-498.61066602,8.493e-05,2]
[424645670,1781028639000,-999.99,8.058e-05,2]
[424645668,1781028639000,-9999.99,8.058e-05,2]
[424645667,1781028639000,-21460.817291,7.945e-05,2]
[424645753,1781028640000,-500.0,0.00013698,2]
[424645755,1781028640000,-500.0,0.00013698,2]
[424645756,1781028640000,-500.0,0.00013698,2]
[424645748,1781028640000,-500.0,0.00013698,2]
[424645752,1781028640000,-500.0,0.00013698,2]
[424645749,1781028640000,-500.0,0.00013698,2]
[424645750,1781028640000,-500.0,0.00013698,2]
[424645759,1781028640000,-500.0,0.00013698,2]
[424645751,1781028640000,-350.99,0.00013698,2]
[424645760,1781028640000,-500.0,0.00013698,2]
[424645742,1781028640000,-500.0,0.00013698,2]
[424645757,1781028640000,-500.0,0.00013698,2]
[424645754,1781028640000,-500.0,0.00013698,2]
[424645767,1781028640000,-500.0,0.00013698,2]
[424645761,1781028640000,-500.0,0.00013698,2]
[424645765,1781028640000,-500.0,0.00013698,2]
[424645769,1781028640000,-500.0,0.00013698,2]
[424645772,1781028640000,-500.0,0.00013698,2]
[424645768,1781028640000,-500.0,0.00013698,2]
[424645763,1781028640000,-500.0,0.00013698,2]
[424645764,1781028640000,-500.0,0.00013698,2]
[424645766,1781028640000,-500.0,0.00013698,2]
[424645770,1781028640000,-500.0,0.00013698,2]
[424645771,1781028640000,-500.0,0.00013698,2]
[424645762,1781028640000,-500.0,0.00013698,2]
[424645773,1781028640000,-500.0,0.00013698,2]
[424645785,1781028640000,-893.88125604,0.00013699,2]
[424645745,1781028640000,-500.0,0.00013698,2]
[424645758,1781028640000,-500.0,0.00013698,2]
[424645744,1781028640000,-500.0,0.00013698,2]
[424645717,1781028640000,-170.74904792,0.00011133,2]
[424645740,1781028640000,-1205.05,0.00013489,2]
[424645787,1781028640000,-893.88125604,0.00013699,2]
[424645716,1781028640000,-170.74904795,0.00011099,2]
[424645715,1781028640000,-1462.38678803,0.00011094,2]
[424645720,1781028640000,-166.66,0.00011288,2]
[424645719,1781028640000,-150.0,0.00011233,2]
[424645718,1781028640000,-166.66,0.00011178,2]
[424645721,1781028640000,-166.66,0.00011397,2]
[424645733,1781028640000,-166.66,0.00012605,2]
[424645723,1781028640000,-482.95515419,0.0001174,2]
[424645734,1781028640000,-500.0,0.00012702,2]
[424645722,1781028640000,-166.66,0.00011507,2]
[424645724,1781028640000,-199.5,0.0001175,2]
[424645725,1781028640000,-151.0,0.00012,2]
[424645743,1781028640000,-500.0,0.00013698,2]
[424645728,1781028640000,-151.0,0.00012,2]
[424645729,1781028640000,-2000.0,0.0001213,2]
[424645732,1781028640000,-821.40861723,0.00012551,2]
[424645731,1781028640000,-660.77,0.00012329,2]
[424645727,1781028640000,-151.0,0.00012,2]
[424645730,1781028640000,-1205.05,0.00012263,2]
[424645736,1781028640000,-1500.0,0.00013025,2]
[424645737,1781028640000,-165.37,0.00013273,2]
[424645747,1781028640000,-500.0,0.00013698,2]
[424645735,1781028640000,-166.66,0.00013021,2]
[424645746,1781028640000,-500.0,0.00013698,2]
[424645738,1781028640000,-2000.0,0.00013343,2]
[424645739,1781028640000,-166.66,0.00013437,2]
[424645741,1781028640000,-1555.5,0.00013573,2]
[424645726,1781028640000,-151.0,0.00012,2]
[424645786,1781028640000,-893.88125604,0.00013699,2]
[424645820,1781028640000,-893.88125604,0.00013699,2]
[424645774,1781028640000,-211.15,0.00013698,2]
[424645815,1781028640000,-893.88125604,0.00013699,2]
[424645817,1781028640000,-893.88125604,0.00013699,2]
[424645819,1781028640000,-893.88125604,0.00013699,2]
[424645821,1781028640000,-893.88125604,0.00013699,2]
[424645818,1781028640000,-893.88125604,0.00013699,2]
[424645822,1781028640000,-893.88125604,0.00013699,2]
[424645825,1781028640000,-893.88125604,0.00013699,2]
[424645823,1781028640000,-893.88125604,0.00013699,2]
[424645826,1781028640000,-893.88125604,0.00013699,2]
[424645816,1781028640000,-893.88125604,0.00013699,2]
[424645824,1781028640000,-893.88125604,0.00013699,2]
[424645827,1781028640000,-893.88125604,0.00013699,2]
[424645839,1781028640000,-877.62886957,0.00013699,2]
[424645809,1781028640000,-893.88125604,0.00013699,2]
[424645828,1781028640000,-893.88125604,0.00013699,2]
[424645830,1781028640000,-893.88125604,0.00013699,2]
[424645831,1781028640000,-893.88125604,0.00013699,2]
[424645833,1781028640000,-893.88125604,0.00013699,2]
[424645832,1781028640000,-893.88125604,0.00013699,2]
[424645835,1781028640000,-877.62886957,0.00013699,2]
[424645837,1781028640000,-877.62886957,0.00013699,2]
[424645838,1781028640000,-877.62886957,0.00013699,2]
[424645836,1781028640000,-877.62886957,0.00013699,2]
[424645840,1781028640000,-877.62886957,0.00013699,2]
[424645842,1781028640000,-877.62886957,0.00013699,2]
[424645841,1781028640000,-877.62886957,0.00013699,2]
[424645843,1781028640000,-877.62886957,0.00013699,2]
[424645788,1781028640000,-893.88125604,0.00013699,2]
[424645834,1781028640000,-877.62886957,0.00013699,2]
[424645812,1781028640000,-893.88125604,0.00013699,2]
[424645829,1781028640000,-893.88125604,0.00013699,2]
[424645811,1781028640000,-893.88125604,0.00013699,2]
[424645813,1781028640000,-893.88125604,0.00013699,2]
[424645780,1781028640000,-893.88125604,0.00013699,2]
[424645778,1781028640000,-893.88125604,0.00013699,2]
[424645781,1781028640000,-893.88125604,0.00013699,2]
[424645777,1781028640000,-200.0,0.00013699,2]
[424645784,1781028640000,-893.88125604,0.00013699,2]
[424645783,1781028640000,-893.88125604,0.00013699,2]
[424645791,1781028640000,-893.88125604,0.00013699,2]
[424645789,1781028640000,-893.88125604,0.00013699,2]
[424645792,1781028640000,-893.88125604,0.00013699,2]
[424645797,1781028640000,-893.88125604,0.00013699,2]
[424645800,1781028640000,-893.88125604,0.00013699,2]
[424645795,1781028640000,-893.88125604,0.00013699,2]
[424645801,1781028640000,-893.88125604,0.00013699,2]
[424645799,1781028640000,-893.88125604,0.00013699,2]
[424645782,1781028640000,-893.88125604,0.00013699,2]
[424645810,1781028640000,-893.88125604,0.00013699,2]
[424645808,1781028640000,-893.88125604,0.00013699,2]
[424645807,1781028640000,-893.88125604,0.00013699,2]
[424645814,1781028640000,-893.88125604,0.00013699,2]
[424645793,1781028640000,-893.88125604,0.00013699,2]
[424645805,1781028640000,-893.88125604,0.00013699,2]
[424645803,1781028640000,-893.88125604,0.00013699,2]
[424645806,1781028640000,-893.88125604,0.00013699,2]
[424645802,1781028640000,-893.88125604,0.00013699,2]
[424645798,1781028640000,-893.88125604,0.00013699,2]
[424645794,1781028640000,-893.88125604,0.00013699,2]
[424645796,1781028640000,-893.88125604,0.00013699,2]
[424645790,1781028640000,-893.88125604,0.00013699,2]
[424645804,1781028640000,-893.88125604,0.00013699,2]
[424645889,1781028641000,-1874.62385813,0.000154,2]
[424645882,1781028641000,-500.0,0.00015,2]
[424645883,1781028641000,-500.0,0.00015,2]
[424645887,1781028641000,-1734.62772924,0.00015217,2]
[424645888,1781028641000,-170.74904792,0.00015218,2]
[424645875,1781028641000,-2000.0,0.00014556,2]
[424645891,1781028641000,-584.61011504,0.00015469,10]
[424645880,1781028641000,-1205.05,0.00014715,2]
[424645890,1781028641000,-683.156864,0.000154,2]
[424645874,1781028641000,-821.40861723,0.00014434,2]
[424645878,1781028641000,-1672.7364795,0.00014669,2]
[424645884,1781028641000,-440.0,0.00015,3]
[424645879,1781028641000,-166.66,0.00014685,2]
[424645886,1781028641000,-160.0,0.00015,2]
[424645902,1781028641000,-683.156864,0.000161,2]
[424645885,1781028641000,-240.0,0.00015,2]
[424645892,1781028641000,-1874.62385813,0.000156,2]
[424645895,1781028641000,-1874.62385813,0.000158,2]
[424645896,1781028641000,-419.50355664,0.000158,5]
[424645903,1781028641000,-8281.88,0.00016116,2]
[424645893,1781028641000,-683.156864,0.000156,2]
[424645901,1781028641000,-1874.62385813,0.000161,2]
[424645897,1781028641000,-683.156864,0.000158,2]
[424645894,1781028641000,-1798.80895522,0.00015765,2]
[424645904,1781028641000,-9999.99,0.00016116,2]
[424645898,1781028641000,-1874.62385813,0.000159,2]
[424645899,1781028641000,-683.156864,0.000159,2]
[424645900,1781028641000,-300.0,0.00016,2]
[424645881,1781028641000,-360.0,0.00015,2]
[424645876,1781028641000,-1601.446427,0.00014647,2]
[424645844,1781028641000,-877.62886957,0.00013699,2]
[424645867,1781028641000,-520.64,0.000137,2]
[424645850,1781028641000,-877.62886957,0.00013699,2]
[424645849,1781028641000,-877.62886957,0.00013699,2]
[424645845,1781028641000,-877.62886957,0.00013699,2]
[424645846,1781028641000,-877.62886957,0.00013699,2]
[424645851,1781028641000,-877.62886957,0.00013699,2]
[424645847,1781028641000,-877.62886957,0.00013699,2]
[424645848,1781028641000,-877.62886957,0.00013699,2]
[424645852,1781028641000,-877.62886957,0.00013699,2]
[424645854,1781028641000,-877.62886957,0.00013699,2]
[424645865,1781028641000,-877.62886957,0.00013699,2]
[424645864,1781028641000,-877.62886957,0.00013699,2]
[424645853,1781028641000,-877.62886957,0.00013699,2]
[424645855,1781028641000,-877.62886957,0.00013699,2]
[424645872,1781028641000,-1613.0535,0.00014121,2]
[424645863,1781028641000,-877.62886957,0.00013699,2]
[424645859,1781028641000,-877.62886957,0.00013699,2]
[424645860,1781028641000,-877.62886957,0.00013699,2]
[424645858,1781028641000,-877.62886957,0.00013699,2]
[424645856,1781028641000,-877.62886957,0.00013699,2]
[424645861,1781028641000,-877.62886957,0.00013699,2]
[424645862,1781028641000,-877.62886957,0.00013699,2]
[424645868,1781028641000,-166.66,0.00013853,2]
[424645866,1781028641000,-877.62886963,0.00013699,2]
[424645870,1781028641000,-11913.96805586,0.00014015,2]
[424645871,1781028641000,-307.0068747,0.00014101,2]
[424645869,1781028641000,-250.0,0.00014,2]
[424645873,1781028641000,-166.66,0.00014269,2]
[424645877,1781028641000,-584.61011504,0.00014647,10]
[424645857,1781028641000,-877.62886957,0.00013699,2]
[424645915,1781028641000,-660.77,0.00016767,2]
[424645916,1781028641000,-292.30505752,0.00016839,10]
[424645905,1781028641000,-14199.36,0.00016116,2]
[424645937,1781028641000,-151.0,0.00017957,2]
[424645950,1781028641000,-500.0,0.00017957,2]
[424645954,1781028641000,-151.0,0.00017957,2]
[424645942,1781028641000,-151.0,0.00017957,2]
[424645951,1781028641000,-151.0,0.00017957,2]
[424645946,1781028641000,-500.0,0.00017957,2]
[424645948,1781028641000,-151.0,0.00017957,2]
[424645947,1781028641000,-151.0,0.00017957,2]
[424645945,1781028641000,-151.0,0.00017957,2]
[424645953,1781028641000,-500.0,0.00017957,2]
[424645944,1781028641000,-500.0,0.00017957,2]
[424645943,1781028641000,-151.0,0.00017957,2]
[424645949,1781028641000,-151.0,0.00017957,2]
[424645938,1781028641000,-500.0,0.00017957,2]
[424645952,1781028641000,-151.0,0.00017957,2]
[424645966,1781028641000,-199.2652286,0.00018,2]
[424645962,1781028641000,-151.0,0.00017957,2]
[424645964,1781028641000,-350.0,0.00018,2]
[424645963,1781028641000,-151.0,0.00017957,2]
[424645955,1781028641000,-151.0,0.00017957,2]
[424645956,1781028641000,-500.0,0.00017957,2]
[424645959,1781028641000,-151.0,0.00017957,2]
[424645957,1781028641000,-151.0,0.00017957,2]
[424645960,1781028641000,-500.0,0.00017957,2]
[424645958,1781028641000,-500.0,0.00017957,2]
[424645961,1781028641000,-151.0,0.00017957,2]
[424645968,1781028641000,-483.59987854,0.00018,2]
[424645967,1781028641000,-3193.48474908,0.00018,2]
[424645965,1781028641000,-8748.22268258,0.00018,2]
[424645934,1781028641000,-151.0,0.00017957,2]
[424645914,1781028641000,-249.0,0.0001675,2]
[424645933,1781028641000,-2080.17592889,0.00017957,2]
[424645936,1781028641000,-151.0,0.00017957,2]
[424645912,1781028641000,-150.0,0.00016684,3]
[424645910,1781028641000,-446.0,0.00016671,2]
[424645908,1781028641000,-1455.5,0.00016438,2]
[424645913,1781028641000,-168.37,0.00016712,2]
[424645907,1781028641000,-1865.36488656,0.00016313,2]
[424645911,1781028641000,-445.0,0.00016671,2]
[424645906,1781028641000,-11913.96805586,0.00016263,2]
[424645917,1781028641000,-1934.38338736,0.00016861,2]
[424645921,1781028641000,-151.0,0.00017957,2]
[424645920,1781028641000,-500.0,0.00017949,2]
[424645928,1781028641000,-151.0,0.00017957,2]
[424645918,1781028641000,-2005.9555727,0.00017409,2]
[424645925,1781028641000,-151.0,0.00017957,2]
[424645909,1781028641000,-520.64,0.000165,2]
[424645919,1781028641000,-200.0,0.00017611,2]
[424645929,1781028641000,-151.0,0.00017957,2]
[424645932,1781028641000,-151.0,0.00017957,2]
[424645930,1781028641000,-151.0,0.00017957,2]
[424645931,1781028641000,-500.0,0.00017957,2]
[424645940,1781028641000,-151.0,0.00017957,2]
[424645941,1781028641000,-500.0,0.00017957,2]
[424645939,1781028641000,-151.0,0.00017957,2]
[424645935,1781028641000,-500.0,0.00017957,2]
[424645922,1781028641000,-151.0,0.00017957,2]
[424645927,1781028641000,-151.0,0.00017957,2]
[424645926,1781028641000,-151.0,0.00017957,2]
[424645923,1781028641000,-151.0,0.00017957,2]
[424645924,1781028641000,-151.0,0.00017957,2]
[424646010,1781028642000,-400.0,0.0002,2]
[424646007,1781028642000,-500.0,0.00019728,2]
[424646008,1781028642000,-500.0,0.00019728,2]
[424646009,1781028642000,-165.37,0.00019909,2]
[424646016,1781028642000,-2225.0,0.0002,2]
[424645995,1781028642000,-3193.48474908,0.000191,2]
[424646006,1781028642000,-3193.48474908,0.000197,2]
[424645999,1781028642000,-3193.48474908,0.000193,2]
[424646001,1781028642000,-8748.22268258,0.000195,2]
[424646000,1781028642000,-170.74904792,0.00019302,2]
[424646011,1781028642000,-521.67083014,0.0002,2]
[424646005,1781028642000,-8748.22268258,0.000197,2]
[424646014,1781028642000,-785.0,0.0002,2]
[424646025,1781028642000,-1271.0,0.0002,2]
[424646012,1781028642000,-666.0,0.0002,2]
[424646013,1781028642000,-390.411394,0.0002,2]
[424646017,1781028642000,-4388.0,0.0002,2]
[424646019,1781028642000,-592.0,0.0002,2]
[424646023,1781028642000,-3290.0,0.0002,2]
[424646018,1781028642000,-781.0,0.0002,2]
[424646020,1781028642000,-2183.0,0.0002,2]
[424646022,1781028642000,-653.0,0.0002,2]
[424646024,1781028642000,-735.0,0.0002,2]
[424646021,1781028642000,-817.0,0.0002,2]
[424646027,1781028642000,-6426.36,0.0002,2]
[424646028,1781028642000,-343.0,0.0002,2]
[424645998,1781028642000,-8748.22268258,0.000193,2]
[424646015,1781028642000,-700.0,0.0002,2]
[424645996,1781028642000,-500.0,0.00019154,2]
[424645980,1781028642000,-11913.96805586,0.00018511,2]
[424646002,1781028642000,-3193.48474908,0.000195,2]
[424646026,1781028642000,-213.98,0.0002,2]
[424645978,1781028642000,-3193.48474908,0.000185,2]
[424645979,1781028642000,-2157.14243826,0.00018505,2]
[424645973,1781028642000,-199.2652286,0.000184,2]
[424645977,1781028642000,-199.2652286,0.000185,2]
[424645975,1781028642000,-1455.5,0.0001841,2]
[424645969,1781028642000,-8748.22268258,0.000182,2]
[424645970,1781028642000,-199.2652286,0.000182,2]
[424645972,1781028642000,-8748.22268258,0.000184,2]
[424645974,1781028642000,-3193.48474908,0.000184,2]
[424645971,1781028642000,-3193.48474908,0.000182,2]
[424645976,1781028642000,-8748.22268258,0.000185,2]
[424645981,1781028642000,-666.16112344,0.0001854,2]
[424646004,1781028642000,-2319.72410669,0.00019601,2]
[424645991,1781028642000,-3193.48474908,0.000189,2]
[424645983,1781028642000,-520.64,0.000186,2]
[424645984,1781028642000,-1000.0,0.00018639,2]
[424645989,1781028642000,-165.530911,0.00018797,2]
[424645986,1781028642000,-199.2652286,0.000187,2]
[424645985,1781028642000,-8748.22268258,0.000187,2]
[424645990,1781028642000,-8748.22268258,0.000189,2]
[424645987,1781028642000,-3193.48474908,0.000187,2]
[424645988,1781028642000,-241.79993927,0.00018742,2]
[424645992,1781028642000,-2236.95670847,0.00019053,2]
[424645994,1781028642000,-8748.22268258,0.000191,2]
[424645993,1781028642000,-168.97999999,0.00019099,2]
[424646003,1781028642000,-289.0,0.00019582,2]
[424645997,1781028642000,-500.0,0.00019154,2]
[424645982,1781028642000,-158.91248672,0.0001854,2]
[424646031,1781028642000,-200.0,0.00020318,2]
[424646029,1781028642000,-2405.55389863,0.00020149,2]
[424646070,1781028642000,-500.0,0.00021558,2]
[424646061,1781028642000,-500.0,0.00021088,7]
[424646064,1781028642000,-660.77,0.00021205,2]
[424646065,1781028642000,-2586.85809042,0.00021245,2]
[424646067,1781028642000,-1255.79,0.00021273,2]
[424646079,1781028642000,-496.67557791,0.00021918,30]
[424646077,1781028642000,-5000.0,0.00021918,2]
[424646078,1781028642000,-500.0,0.00021918,30]
[424646072,1781028642000,-500.0,0.00021694,2]
[424646075,1781028642000,-978.19588565,0.000219,2]
[424646068,1781028642000,-978.19588565,0.000214,2]
[424646071,1781028642000,-978.19588565,0.000216,2]
[424646074,1781028642000,-2682.57183977,0.00021793,2]
[424646076,1781028642000,-1877.46286351,0.00021918,2]
[424646063,1781028642000,-978.19588565,0.000212,2]
[424646069,1781028642000,-500.0,0.00021558,2]
[424646081,1781028642000,-666.0,0.00022,2]
[424646082,1781028642000,-390.411394,0.00022,2]
[424646090,1781028642000,-817.0,0.00022,2]
[424646084,1781028642000,-700.0,0.00022,2]
[424646083,1781028642000,-785.0,0.00022,2]
[424646088,1781028642000,-592.0,0.00022,2]
[424646085,1781028642000,-2225.0,0.00022,2]
[424646091,1781028642000,-653.0,0.00022,2]